bitfinex-derivatives/quotes_ETHF0:USTF0_20250712
["timestamp","ask_amount","ask_price","bid_price","bid_amount"]
[1752333522134,3.32037,2932.1,2932.0,5.77009]
[1752333522331,3.32037,2932.1,2932.0,5.0882]
[1752333522531,27.99437,2932.1,2932.0,5.0882]
[1752333522738,27.99437,2932.1,2932.0,4.1415]
[1752333523635,3.32044,2931.8,2931.7,4.89316]
[1752333523836,3.32044,2931.8,2931.7,4.2112]
[1752333524039,3.32044,2931.8,2931.7,5.1579]
[1752333524639,3.32044,2931.8,2931.7,4.2112]
[1752333524841,3.32044,2931.8,2931.7,4.89316]
[1752333525034,3.32044,2931.8,2931.7,4.2112]
[1752333525228,3.32044,2931.8,2931.7,4.89316]
[1752333525534,3.32044,2931.8,2931.7,4.2112]
[1752333525733,2.6385,2931.8,2931.7,4.89316]
[1752333525934,2.6385,2931.8,2931.7,5.82866]
[1752333526841,3.32044,2931.8,2931.7,5.82866]
[1752333527141,3.32044,2931.8,2931.7,2.5209]
[1752333527339,3.33449,2931.6,2931.5,4.1626]
[1752333527642,2.6525,2931.8,2931.7,5.0981]
[1752333527938,3.33444,2931.8,2931.7,5.78005]
[1752333528136,2.6525,2931.8,2931.7,5.78005]
[1752333528535,2.36301,2932.0,2931.9,2.32362]
[1752333528734,27.99341,2932.0,2931.9,5.78002]
[1752333529229,2.6525,2932.0,2931.9,5.78002]
[1752333529429,3.33439,2932.0,2931.9,5.0981]
[1752333529639,2.6525,2932.0,2931.9,5.78002]
[1752333530140,0.9714,2932.0,2931.9,5.78002]
[1752333530841,27.02095,2932.2,2932.1,4.84447]
[1752333531039,28.91660124,2932.2,2932.1,5.77997]
[1752333531238,28.23475124,2932.2,2932.1,5.77997]
[1752333531837,6.5421,2932.4,2932.3,5.0981]
[1752333532041,34.13709109,2932.4,2932.3,4.1626]
[1752333532742,34.13709109,2932.4,2932.3,2.5209]
[1752333532944,2.6525,2931.9,2931.8,5.78003]
[1752333533836,0.68199,2931.6,2931.5,4.1626]
[1752333534042,5.35219,2931.6,2931.5,2.5209]
[1752333534241,5.35219,2931.6,2931.5,5.78011]
[1752333534242,3.33449,2931.6,2931.5,5.78011]
[1752333535040,5.8603,2931.8,2931.7,0.68196]
[1752333535344,3.33444,2931.8,2931.7,5.78006]
[1752333535939,27.97344,2931.8,2931.7,5.78006]
[1752333537045,29.99114,2931.8,2931.7,4.1626]
[1752333538345,27.97344,2931.8,2931.7,4.84456]
[1752333538537,2.6525,2931.8,2931.7,5.78006]
[1752333538743,24.632,2931.8,2931.7,5.78006]
[1752333538946,25.31394,2931.8,2931.7,4.84456]
[1752333539245,26.99502,2931.9,2931.8,2.32364]
[1752333539448,27.96642,2931.9,2931.8,4.84454]
[1752333539648,27.2845,2931.9,2931.8,5.78004]
[1752333539851,27.96642,2931.9,2931.8,5.0981]
[1752333540251,3.33442,2931.9,2931.8,5.78004]
[1752333540448,27.96242,2931.9,2931.8,5.78004]
[1752333540640,2.6525,2932.1,2932.0,2.32358]
[1752333540849,27.2795,2932.1,2932.0,2.32358]
[1752333541052,3.2078,2932.2,2932.1,2.32357]
[1752333541253,28.51665,2932.2,2932.1,2.32357]
[1752333541451,27.8348,2932.2,2932.1,5.77997]
[1752333541746,3.2078,2932.2,2932.1,5.77997]
[1752333542742,6.54215,2932.2,2932.1,5.0981]
[1752333543053,6.54215,2932.2,2932.1,5.77997]
[1752333543552,6.54215,2932.2,2932.1,5.0981]
[1752333543553,7.46600239,2932.2,2932.1,5.0981]
[1752333544151,34.10270239,2932.2,2932.1,4.1626]
[1752333544544,0.68189,2932.0,2931.9,2.5772]
[1752333544749,3.33439,2932.0,2931.9,5.0981]
[1752333545248,4.25838627,2932.0,2931.9,5.0981]
[1752333545449,3.33439,2932.0,2931.9,5.0981]
[1752333545652,6.27599153,2932.0,2931.9,4.1626]
[1752333545856,4.25829153,2932.0,2931.9,5.0981]
[1752333546158,0.92390153,2932.0,2931.9,5.78002]
[1752333546355,3.88966,2932.2,2932.1,2.32357]
[1752333546546,4.81362659,2932.2,2932.1,5.0981]
[1752333546853,4.13176659,2932.2,2932.1,5.77997]
[1752333547353,4.81361659,2932.2,2932.1,5.77997]
[1752333547649,4.13176659,2932.2,2932.1,5.77997]
[1752333548649,4.81361659,2932.2,2932.1,5.77997]
[1752333549858,7.83056659,2932.2,2931.6,3.2078]
[1752333550155,2.6525,2932.0,2931.9,5.78]
[1752333550348,2.6525,2932.0,2931.6,4.91271]
[1752333550349,2.6525,2931.7,2931.6,4.1626]
[1752333550546,5.35216,2931.7,2931.6,4.1626]
[1752333550745,3.33446,2931.7,2931.6,4.84459]
[1752333550951,3.33446,2931.7,2931.6,5.78009]
[1752333551147,2.6525,2931.7,2931.6,5.78009]
[1752333551354,2.6525,2931.7,2931.3,4.91291]
[1752333551355,27.2505,2931.9,2931.8,2.32364]
[1752333551554,27.93143,2931.9,2931.8,5.0981]
[1752333551957,29.94913,2931.9,2931.8,4.1626]
[1752333552157,2.6525,2931.7,2931.6,8.98787]
[1752333552360,26.6147,2931.9,2931.6,8.98787]
[1752333552361,25.5684,2931.9,2931.8,1.6417]
[1752333552654,3.2078,2932.2,2932.1,5.77997]
[1752333552960,6.54215,2932.2,2932.1,5.77997]
[1752333553455,6.54215,2932.2,2932.1,5.0981]
[1752333553758,2.36298,2932.1,2932.0,4.0657]
[1752333553960,3.33438,2932.1,2932.0,5.0012]
[1752333554466,1.65329,2932.0,2931.9,0.6819]
[1752333554667,0.9714,2932.0,2931.9,1.6174]
[1752333554960,2.5004,2932.0,2931.9,5.6272]
[1752333556055,4.7368,2932.2,2932.1,0.68187]
[1752333556250,3.2078,2932.2,2932.1,5.63587]
[1752333556662,4.2049,2932.2,2932.1,5.63587]
[1752333556850,5.7339,2932.2,2932.1,5.63587]
[1752333557263,6.41575,2932.2,2932.1,5.63587]
[1752333557450,3.20795,2932.2,2932.1,5.63587]
[1752333557656,2.5261,2932.2,2932.1,5.63587]
[1752333557859,27.1091,2932.2,2932.1,5.63587]
[1752333558361,2.5261,2932.2,2932.1,5.63587]
[1752333558758,3.20795,2932.2,2932.1,5.63587]
[1752333559360,3.20795,2932.2,2932.1,4.69167]
[1752333559564,3.20802,2931.9,2931.8,4.954]
[1752333560165,3.20802,2931.9,2931.8,5.63594]
[1752333560862,2.5261,2931.9,2931.8,5.63594]
[1752333561160,3.20802,2931.9,2931.8,5.63594]
[1752333561363,29.3108,2932.2,2932.1,4.69167]
[1752333561567,31.23211127,2932.2,2932.1,5.63587]
[1752333561769,6.65811127,2932.2,2932.1,5.63587]
[1752333562062,4.13201127,2932.2,2932.1,5.63587]
[1752333563166,3.2078,2932.2,2932.1,5.63587]
[1752333563864,5.7339,2932.2,2932.1,5.63587]
[1752333564266,8.34515,2932.2,2932.1,4.69167]
[1752333564465,8.34515,2932.2,2932.1,4.0098]
[1752333564666,7.6633,2932.2,2932.1,4.69167]
[1752333564869,5.7339,2932.2,2932.1,4.69167]
[1752333565062,3.2078,2932.2,2932.1,5.63587]
[1752333565461,4.2049,2932.2,2932.1,5.63587]
[1752333565661,2.5261,2932.2,2932.1,5.63587]
[1752333566967,3.20795,2932.2,2932.1,5.63587]
[1752333567157,3.2078,2932.6,2932.3,0.68179]
[1752333567361,2.5261,2932.4,2932.3,5.63579]
[1752333567757,3.20791,2932.4,2932.3,4.69159]
[1752333567963,5.13731,2932.4,2932.3,4.69159]
[1752333568163,3.20791,2932.4,2932.3,4.69159]
[1752333569465,3.20791,2932.4,2932.3,4.0098]
[1752333569667,5.13731,2932.4,2932.3,4.69162]
[1752333569868,5.13732,2932.3,2932.2,0.68183]
[1752333570081,2.5261,2932.3,2932.2,4.69163]
[1752333570267,2.5261,2932.3,2932.2,5.63583]
[1752333570962,26.075,2932.4,2932.3,2.26762]
[1752333571168,27.7539,2932.4,2932.3,4.0098]
[1752333571369,27.7539,2932.4,2932.3,5.63582]
[1752333571768,3.2079,2932.4,2932.3,5.63582]
[1752333571964,0.6818,2932.4,2932.3,5.63582]
[1752333572268,25.2238,2932.5,2932.4,5.63578]
[1752333572463,28.66715558,2932.5,2932.4,5.63578]
[1752333573169,28.66715558,2932.5,2932.4,4.954]
[1752333574379,30.54705558,2932.5,2932.4,4.0098]
[1752333574569,6.00505558,2932.5,2932.4,4.0098]
[1752333574770,30.54105558,2932.5,2932.4,4.0098]
[1752333575267,30.53905558,2932.5,2932.4,2.424]
[1752333575467,3.20795,2932.2,2932.1,4.954]
[1752333575669,3.20795,2932.2,2932.1,5.63587]
[1752333576474,3.20795,2932.2,2932.1,4.954]
[1752333577171,5.08785,2932.2,2932.1,4.0098]
[1752333577371,5.08789,2932.1,2932.0,2.424]
[1752333577571,5.08789,2932.1,2932.0,4.0098]
[1752333577774,5.08789,2932.1,2932.0,5.63589]
[1752333577775,2.5261,2932.1,2932.0,5.63589]
[1752333577972,1.529,2932.3,2932.2,1.5858]
[1752333578173,27.97036084,2932.3,2932.2,4.69163]
[1752333578373,28.65218084,2932.3,2932.2,4.69163]
[1752333578678,4.12518084,2932.3,2932.2,5.63585]
[1752333579071,4.12518084,2932.3,2932.2,4.954]
[1752333580073,0.91726084,2932.3,2932.2,5.63585]
[1752333580371,26.19889,2932.5,2932.4,2.53]
[1752333580576,28.64562325,2932.5,2932.4,4.954]
[1752333581079,27.96388633,2932.5,2932.4,5.6358]
[1752333581376,28.64566633,2932.5,2932.4,5.6358]
[1752333582577,27.96388633,2932.5,2932.4,5.6358]
[1752333582977,0.91778633,2932.5,2932.4,5.6358]
[1752333583280,4.12566633,2932.5,2932.4,5.6358]
[1752333585285,4.12566633,2932.5,2932.4,4.954]
[1752333585580,5.96816633,2932.5,2932.4,4.0098]
[1752333585781,2.25882,2932.3,2932.2,2.494]
[1752333585972,5.97141654,2932.3,2932.2,4.0198]
[1752333586981,5.97141654,2932.3,2932.2,4.70165]
[1752333587384,3.44709654,2932.3,2932.2,5.64425]
[1752333587681,3.44708807,2932.3,2932.2,5.64425]
[1752333587877,2.5283,2932.3,2932.2,5.64425]
[1752333588384,3.44701299,2932.3,2932.2,5.64425]
[1752333589376,3.21019,2932.1,2932.0,4.9624]
[1752333589573,5.05269,2932.1,2932.0,4.0198]
[1752333589981,5.05269,2932.1,2932.0,4.70169]
[1752333590384,29.54669,2932.1,2932.0,4.70169]
[1752333590875,29.54669,2932.1,2932.0,4.0198]
[1752333591879,30.46562477,2932.1,2932.0,4.0198]
[1752333592687,3.21024,2931.8,2931.7,5.64436]
[1752333592881,3.44723477,2931.8,2931.7,5.64436]
[1752333593283,2.5283,2931.8,2931.7,5.64436]
[1752333594281,3.2102,2932.0,2931.9,5.64432]
[1752333594585,28.61455632,2932.0,2931.9,4.9624]
[1752333594787,4.12855632,2932.0,2931.9,4.9624]
[1752333594982,28.61055632,2932.0,2931.9,4.0198]
[1752333595285,28.61055632,2932.0,2931.9,5.64432]
[1752333596878,28.61055632,2932.0,2931.6,1.70496]
[1752333596879,26.74087,2932.2,2932.1,1.5514]
[1752333597184,28.61017787,2932.2,2932.1,4.9624]
[1752333597584,27.92830787,2932.2,2932.1,5.64427]
[1752333598082,27.0103,2932.2,2932.1,5.64427]
[1752333598289,27.92835814,2932.2,2932.1,5.64427]
[1752333598482,3.44635814,2932.2,2932.1,5.64427]
[1752333598683,27.92235814,2932.2,2932.1,5.64427]
[1752333598883,3.44635814,2932.2,2932.1,5.64427]
[1752333599084,2.5283,2932.2,2932.1,5.64427]
[1752333599279,2.5283,2932.5,2932.4,3.1758]
[1752333599480,27.91750194,2932.5,2932.4,5.6442]
[1752333600183,29.01187802,2932.5,2932.4,5.6442]
[1752333600785,29.01187802,2932.5,2932.4,4.9624]
[1752333600982,0.68182,2932.4,2932.3,2.4684]
[1752333601187,7.06519802,2932.4,2932.3,2.4684]
[1752333601984,6.38337802,2932.4,2932.3,4.0198]
[1752333602187,7.06517802,2932.4,2932.3,4.0198]
[1752333602688,0.68189,2932.1,2931.6,7.63096]
[1752333602985,2.5283,2932.1,2932.0,5.64429]
[1752333604183,1.577,2932.4,2932.3,4.9624]
[1752333604491,27.90320484,2932.4,2932.3,4.9624]
[1752333604991,28.58500484,2932.4,2932.3,4.9624]
[1752333605198,29.67938092,2932.4,2932.3,4.9624]
[1752333605689,31.52188092,2932.4,2932.3,4.0198]
[1752333606288,31.52188092,2932.4,2932.3,4.70162]
[1752333606488,29.67938092,2932.4,2932.3,5.64422]
[1752333606686,0.91790484,2932.4,2932.3,5.64422]
[1752333607282,3.2078,2932.6,2932.5,0.68178]
[1752333607486,4.12794192,2932.6,2932.5,5.64418]
[1752333607890,4.7848,2932.6,2932.5,5.64418]
[1752333608084,4.7848,2932.6,2932.2,0.9426]
[1752333608085,9.35472608,2932.6,2932.2,0.9426]
[1752333608288,6.14699608,2932.3,2932.2,1.5514]
[1752333608490,29.66928339,2932.3,2932.2,2.494]
[1752333608693,29.66928339,2932.3,2932.2,4.9624]
[1752333608890,0.68189,2932.0,2931.9,6.8686]
[1752333609193,3.21019,2932.0,2931.9,11.57031]
[1752333609387,3.21019,2932.0,2931.9,10.8884]
[1752333610292,5.05269,2932.0,2931.9,9.9458]
[1752333610494,5.05269,2932.0,2931.9,5.926]
[1752333610794,5.97362875,2932.0,2931.9,5.926]
[1752333610997,1.63313,2932.3,2932.2,2.23323]
[1752333611192,4.1311575,2932.3,2932.2,4.9624]
[1752333612496,28.5641575,2932.3,2932.2,4.9624]
[1752333612686,28.5641575,2932.3,2932.2,4.0198]
[1752333612892,3.21019,2932.0,2931.9,3.1759]
[1752333613092,2.5283,2932.0,2931.9,3.1759]
[1752333613292,3.21019,2932.0,2931.9,3.1759]
[1752333613491,3.21019,2932.0,2931.9,5.4961]
[1752333613691,2.5283,2932.0,2931.9,5.4961]
[1752333614290,3.21019,2932.0,2931.9,4.8142]
[1752333614596,3.21019,2932.0,2931.9,3.8716]
[1752333614996,3.21019,2932.0,2931.9,4.8142]
[1752333615996,4.13094985,2932.0,2931.9,4.8142]
[1752333616202,5.88804985,2932.0,2931.9,3.8716]
[1752333617801,3.13954,2931.8,2931.7,3.9114]
[1752333619402,3.13954,2931.8,2931.7,4.8819]
[1752333619798,0.92031343,2931.8,2931.4,3.29629]
[1752333619998,3.1395,2932.0,2931.9,4.8819]
[1752333620198,4.05976062,2932.0,2931.9,4.8819]
[1752333620900,5.81686062,2932.0,2931.9,3.9114]
[1752333621798,3.13956,2931.7,2931.6,2.5617]
[1752333622398,3.13956,2931.7,2931.6,4.8819]
[1752333624505,0.68196,2931.7,2931.6,5.56389]
[1752333624706,3.13956,2931.7,2931.6,4.8819]
[1752333625405,3.13956,2931.7,2931.6,3.9114]
[1752333625706,4.89666,2931.7,2931.6,3.9114]
[1752333626305,45.69666,2931.7,2931.6,3.9114]
[1752333626907,2.4576,2931.3,2931.2,3.9114]
[1752333627117,3.13966,2931.3,2931.2,4.8819]
[1752333627408,3.13982,2930.6,2930.5,7.94713062]
[1752333627603,3.13982,2930.6,2930.5,4.8819]
[1752333628202,0.68222,2930.6,2930.5,4.8819]
[1752333628605,0.68222,2930.6,2930.5,5.56414]
[1752333628801,1.4951,2930.9,2930.8,1.5912]
[1752333629001,0.68207,2931.3,2931.1,0.68209]
[1752333629309,27.53267,2931.3,2931.2,4.8819]
[1752333629509,28.45158621,2931.3,2931.2,4.8819]
[1752333629910,68.33267,2931.3,2931.2,3.9114]
[1752333630111,27.53267,2931.3,2931.2,3.9114]
[1752333630805,29.28977,2931.3,2931.2,3.9114]
[1752333631203,0.68213,2931.0,2930.9,2.5617]
[1752333631407,2.1773,2930.7,2930.6,2.5617]
[1752333631708,31.47570814,2930.7,2930.6,2.3202]
[1752333631903,3.13987,2930.4,2930.3,1.5912]
[1752333632303,27.52787,2930.4,2930.3,1.5912]
[1752333632505,27.52787,2930.4,2930.3,3.9114]
[1752333632698,3.2078,2930.8,2930.7,1.5912]
[1752333632902,0.68213,2931.0,2930.9,2.5617]
[1752333633106,3.13973,2931.0,2930.9,4.8819]
[1752333633806,4.89683,2931.0,2930.9,3.9114]
[1752333634011,2.1773,2930.7,2930.6,4.8819]
[1752333634205,3.1398,2930.7,2930.6,4.8819]
[1752333634405,29.29911,2931.1,2930.8,2.27336]
[1752333634406,2.17726,2930.9,2930.8,2.27336]
[1752333634707,2.4576,2930.9,2930.8,5.56406]
[1752333635110,0.68213,2931.0,2930.9,2.27334]
[1752333635306,0.68212,2931.1,2931.0,2.27333]
[1752333635607,26.02662,2931.1,2931.0,5.56403]
[1752333636611,26.02662,2931.1,2931.0,4.8819]
[1752333636911,26.02662,2931.1,2931.0,5.56403]
[1752333636912,0.68212,2931.1,2931.0,5.56403]
[1752333637107,24.381,2931.1,2931.0,5.56403]
[1752333637617,25.0631,2931.1,2931.0,5.56403]
[1752333637918,24.381,2931.1,2931.0,5.56403]
[1752333638212,0.9625,2931.1,2931.0,5.56403]
[1752333638408,3.1397,2931.1,2931.0,4.8819]
[1752333638711,3.1397,2931.1,2931.0,3.9114]
[1752333638915,3.1397,2931.1,2931.0,4.8819]
[1752333639213,2.4576,2931.1,2931.0,5.56403]
[1752333640213,3.1397,2931.1,2931.0,5.56403]
[1752333640412,2.4576,2931.1,2931.0,5.56403]
[1752333640717,25.05808,2931.2,2931.1,5.564]
[1752333640911,0.68208,2931.2,2931.1,5.564]
[1752333641113,26.01458,2931.2,2931.1,5.564]
[1752333641316,27.50968,2931.2,2931.1,4.8819]
[1752333641519,27.50968,2931.2,2931.1,5.564]
[1752333641815,28.42726242,2931.2,2931.1,5.564]
[1752333642323,28.42726242,2931.2,2931.1,4.8819]
[1752333642513,27.50968,2931.2,2931.1,4.8819]
[1752333643021,27.50968,2931.2,2931.1,5.564]
[1752333643318,26.8276,2931.2,2931.1,5.564]
[1752333643518,0.68208,2931.2,2931.1,5.564]
[1752333643718,27.50368,2931.2,2931.1,4.8819]
[1752333644814,27.50368,2931.2,2931.1,5.564]
[1752333645013,1.5865,2931.0,2930.9,1.443]
[1752333645219,30.35951087,2931.0,2930.9,1.443]
[1752333645413,4.93237,2930.8,2930.7,3.7159]
[1752333645613,3.25917,2930.8,2930.7,3.7159]
[1752333645814,3.25917,2930.8,2930.7,4.6579]
[1752333646114,27.61817,2930.8,2930.7,4.6579]
[1752333647015,28.71335087,2930.8,2930.7,4.6579]
[1752333647417,27.61717,2930.8,2930.7,4.6579]
[1752333648622,28.71235087,2930.8,2930.7,3.7159]
[1752333648823,30.38555087,2930.8,2930.7,3.7159]
[1752333649323,30.38555087,2930.8,2930.4,3.7159]
[1752333649324,3.25924,2930.5,2930.4,3.7159]
[1752333649523,6.02762087,2930.5,2930.4,3.7159]
[1752333650820,4.93244,2930.5,2930.4,3.7159]
[1752333654323,4.93244,2930.5,2930.4,4.6579]
[1752333654527,3.25924,2930.5,2930.4,4.6579]
[1752333657627,4.93244,2930.5,2930.4,3.7159]
[1752333658428,8.14024,2930.5,2930.4,3.7159]
[1752333658624,0.68224,2930.5,2930.4,5.34017]
[1752333658825,26.00774,2930.5,2930.4,4.6579]
[1752333659225,26.00774,2930.5,2930.4,5.34017]
[1752333659827,27.59424,2930.5,2930.4,4.6579]
[1752333660526,3.25936,2930.0,2929.9,2.385]
[1752333660824,3.25943,2929.7,2929.6,2.385]
[1752333661125,3.2078,2930.1,2929.6,4.6579]
[1752333661323,1.5865,2930.3,2930.2,3.7159]
[1752333661629,48.651,2930.5,2930.4,1.443]
[1752333661826,49.56959866,2930.5,2930.4,5.34017]
[1752333662026,48.651,2930.5,2930.4,5.34017]
[1752333662234,48.65,2930.7,2930.6,5.34012]
[1752333662426,48.647,2930.9,2930.8,1.443]
[1752333662728,49.56580288,2930.9,2930.8,5.34005]
[1752333663134,48.647,2930.9,2930.8,5.34005]
[1752333665831,0.6821,2931.2,2931.1,0.6821]
[1752333666034,0.91944458,2931.2,2931.1,4.6579]
[1752333666222,27.5228,2931.3,2931.1,4.6579]
[1752333666532,27.5228,2931.3,2931.2,5.33998]
[1752333666731,28.44256683,2931.3,2931.2,5.33998]
[1752333666934,29.12462683,2931.3,2931.2,4.6579]
[1752333667329,29.12462683,2931.3,2931.2,5.33998]
[1752333667633,28.44156683,2931.3,2931.2,5.33998]
[1752333668023,4.12756683,2931.3,2931.2,5.33998]
[1752333668228,3.2078,2931.3,2931.2,5.33998]
[1752333669327,3.2078,2931.3,2931.2,10.33998]
[1752333669529,0.9905,2931.8,2931.2,10.33998]
[1752333669530,24.98792,2931.9,2931.8,3.7159]
[1752333669731,0.68205,2931.4,2931.2,3.2078]
[1752333669931,3.25901,2931.5,2931.4,3.7159]
[1752333670132,2.577,2931.5,2931.4,5.33993]
[1752333670335,3.25901,2931.5,2931.4,5.33993]
[1752333670524,3.25901,2931.5,2931.4,4.6579]
[1752333671025,30.91400158,2931.5,2931.4,3.7159]
[1752333672029,28.65920158,2931.5,2931.4,5.33993]
[1752333672236,28.65920158,2931.5,2931.4,4.6579]
[1752333672432,28.65220158,2931.5,2931.4,5.33993]
[1752333672625,28.65220158,2931.5,2931.4,4.6579]
[1752333672825,1.09519158,2931.9,2931.5,3.2149]
[1752333673027,0.68196,2931.7,2931.6,1.62398]
[1752333673234,0.68196,2931.7,2931.6,5.23598]
[1752333673536,2.26846,2931.7,2931.6,4.554]
[1752333673738,3.25896,2931.7,2931.6,4.554]
[1752333673934,4.17830165,2931.7,2931.6,4.554]
[1752333674333,5.27349323,2931.7,2931.6,4.554]
[1752333675435,28.54519323,2931.7,2931.6,4.554]
[1752333675640,29.48729323,2931.7,2931.6,4.554]
[1752333677244,28.56795158,2931.7,2931.6,4.554]
[1752333678141,28.56795158,2931.7,2931.2,3.2078]
[1752333678142,26.32829158,2931.7,2931.2,3.2078]
[1752333678347,2.65289158,2931.5,2931.4,4.7084]
[1752333678646,27.61890158,2931.5,2931.4,4.7084]
[1752333678847,28.56100158,2931.5,2931.4,4.7084]
[1752333680249,28.56100158,2931.5,2931.4,5.39043]
[1752333680450,28.56100158,2931.5,2931.4,4.7084]
[1752333680751,3.18186,2931.3,2931.2,7.9162]
[1752333680951,4.27705158,2931.3,2931.2,7.9162]
[1752333681344,3.59499158,2931.3,2931.2,7.9162]
[1752333681852,4.27705158,2931.3,2931.2,7.9162]
[1752333682341,3.59499158,2931.3,2931.2,8.59828]
[1752333682542,4.27705158,2931.3,2931.2,7.9162]
[1752333682745,6.43885158,2931.3,2931.2,7.9162]
[1752333683148,6.43885158,2931.3,2931.0,0.68211]
[1752333683149,2.4998,2931.0,2930.9,7.9162]
[1752333683345,3.59499158,2931.0,2930.9,8.59835]
[1752333683548,4.27712158,2931.0,2930.9,7.9162]
[1752333684349,6.43892158,2931.0,2930.9,6.918]
[1752333686551,6.43892158,2931.0,2930.9,3.7102]
[1752333689352,6.43892158,2931.0,2930.9,4.7084]
[1752333690150,48.525,2931.1,2931.0,0.9982]
[1752333690346,48.525,2931.2,2931.1,5.3905]
[1752333691255,1.21578779,2931.7,2931.5,3.1672]
[1752333691456,2.23964,2931.8,2931.7,3.7102]
[1752333691656,28.35855123,2931.8,2931.7,4.7084]
[1752333691854,28.35855123,2931.8,2931.7,5.39036]
[1752333692956,28.35855123,2931.8,2931.7,4.7084]
[1752333693158,2.23971,2931.5,2931.4,4.7084]
[1752333693358,31.61261281,2931.5,2931.4,4.7084]
[1752333693652,31.61261281,2931.5,2931.4,3.7102]
[1752333694557,31.61261281,2931.5,2931.4,4.7084]
[1752333695658,31.61261281,2931.5,2931.4,5.39043]
[1752333695857,31.61261281,2931.5,2931.4,4.7084]
[1752333696562,5.34363,2931.4,2931.3,3.2078]
[1752333696851,6.26344123,2931.4,2931.3,3.2078]
[1752333697056,3.18188,2931.2,2931.1,4.7084]
[1752333697256,28.52107158,2931.2,2931.1,4.7084]
[1752333697654,30.68287158,2931.2,2931.1,4.7084]
[1752333698053,30.68287158,2931.2,2931.1,3.7102]
[1752333698256,3.18193,2931.0,2930.9,7.9162]
[1752333698457,27.83599158,2931.0,2930.9,8.59835]
[1752333698657,28.51812158,2931.0,2930.9,8.59835]
[1752333698858,27.83599158,2931.0,2930.9,8.59835]
[1752333699162,28.51812158,2931.0,2930.9,7.9162]
[1752333699562,28.51812158,2931.0,2930.9,8.59835]
[1752333700063,27.83599158,2931.0,2930.9,8.59835]
[1752333700663,26.7408,2931.0,2930.9,8.59835]
[1752333700858,3.18193,2931.0,2930.9,8.59835]
[1752333701068,27.42093,2931.0,2930.9,8.59835]
[1752333701559,27.42093,2931.0,2930.9,7.9162]
[1752333701760,27.42093,2931.0,2930.9,8.59835]
[1752333702262,26.7388,2931.0,2930.9,8.59835]
[1752333702761,27.42093,2931.0,2930.9,7.9162]
[1752333703365,26.7388,2931.0,2930.9,8.59835]
[1752333703563,27.42093,2931.0,2930.9,7.9162]
[1752333703960,27.42093,2931.0,2930.9,8.59835]
[1752333704263,28.51612158,2931.0,2930.9,7.9162]
[1752333704758,30.68962158,2931.0,2930.9,7.9162]
[1752333706961,30.68962158,2931.0,2930.9,3.2078]
[1752333707162,5.25537,2930.8,2930.7,4.7012]
[1752333707361,30.57356158,2930.8,2930.7,4.7012]
[1752333707771,3.588,2930.4,2930.3,2.4155]
[1752333708058,54.11439158,2930.4,2930.3,5.6233]
[1752333708258,54.79666158,2930.4,2930.3,5.6233]
[1752333708868,53.70147,2930.4,2930.3,5.6233]
[1752333709059,51.52797,2930.4,2930.3,5.6233]
[1752333709260,49.8605,2930.4,2930.3,6.30559]
[1752333709761,50.54277,2930.4,2930.3,6.30559]
[1752333709962,54.79666158,2930.4,2930.3,7.909]
[1752333711364,54.79666158,2930.4,2930.3,4.7052]
[1752333712962,55.06137028,2930.4,2930.3,4.7052]
[1752333713566,54.79666158,2930.4,2930.3,4.7052]
[1752333714059,54.79666158,2930.4,2930.3,7.909]
[1752333714265,54.79666158,2930.4,2930.3,8.59129]
[1752333714664,51.63796158,2930.4,2930.3,8.59129]
[1752333714973,3.08192,2930.6,2930.5,4.7012]
[1752333715166,30.38205181,2930.6,2930.5,4.7012]
[1752333715364,30.38205181,2930.6,2930.5,5.38344]
[1752333715563,30.38205181,2930.6,2930.5,4.7012]
[1752333716268,29.46642,2930.6,2930.5,4.7012]
[1752333716458,30.56161158,2930.6,2930.5,4.7012]
[1752333717669,30.56161158,2930.6,2930.5,5.38344]
[1752333717864,30.56161158,2930.6,2930.5,4.7012]
[1752333719165,29.87939158,2930.6,2930.5,4.7012]
[1752333719371,4.5732,2930.8,2930.7,4.7012]
[1752333719672,30.37440053,2930.8,2930.7,4.7012]
[1752333720367,31.46959211,2930.8,2930.7,4.7012]
[1752333721162,31.46959211,2930.8,2930.4,0.68225]
[1752333721163,5.25547,2930.4,2930.3,1.4974]
[1752333721365,2.09681,2930.2,2930.1,3.2038]
[1752333721570,2.09681,2930.2,2929.9,3.2078]
[1752333721571,5.25556,2930.0,2929.9,4.7052]
[1752333721867,30.54675158,2930.0,2929.9,3.2078]
[1752333722075,1.4145,2929.7,2929.6,4.7012]
[1752333722272,30.54582158,2929.7,2929.6,3.7831]
[1752333722572,30.54582158,2929.7,2929.6,1.4974]
[1752333723165,30.54582158,2929.7,2929.5,3.2078]
[1752333723166,5.25565,2929.6,2929.5,3.2078]
[1752333723371,5.25565,2929.6,2929.5,4.7052]
[1752333724173,2.09704,2929.3,2929.2,3.7831]
[1752333724369,50.89469158,2929.3,2929.2,4.7012]
[1752333724565,50.89469158,2929.3,2928.8,3.89043]
[1752333724566,51.57721158,2929.3,2928.8,3.89043]
[1752333724867,51.57721158,2929.3,2929.1,1.4974]
[1752333724868,4.5732,2929.2,2929.1,1.4974]
[1752333725171,4.5732,2929.2,2929.1,4.7012]
[1752333725172,5.25574,2929.2,2929.1,4.7012]
[1752333725872,4.5732,2929.2,2929.1,4.7012]
[1752333726068,4.5732,2929.2,2929.1,5.38377]
[1752333726569,48.385,2929.3,2928.8,3.2078]
[1752333726570,48.385,2929.3,2929.2,5.38374]
[1752333729071,3.2078,2929.7,2929.6,1.60055]
[1752333729274,28.8083,2929.7,2929.6,5.38365]
[1752333729473,31.967,2929.7,2929.6,5.38365]